fUSD/lending_fUSD_20260526
["ID","MTS","AMOUNT","RATE_DAILY","PERIOD"]
[423050607,1779798993000,-500.0,0.00039167,120]
[423050604,1779798993000,-1076.79,0.00039167,120]
[423050605,1779798993000,-170.05593134,0.00039167,120]
[423050603,1779798993000,-155.45418746,0.00039167,120]
[423050606,1779798993000,-1076.79,0.00039167,120]
[423050601,1779798993000,-295.41243394,0.00039167,120]
[423050600,1779798993000,-247.18258223,0.00039167,120]
[423050599,1779798993000,-500.0,0.00039167,120]
[423050598,1779798993000,-500.0,0.00039167,120]
[423050597,1779798993000,-500.0,0.00039167,120]
[423050596,1779798993000,-169.7868309,0.00039167,100]
[423050602,1779798993000,-500.0,0.00039167,120]
[423050610,1779798994000,-1076.79,0.00039167,120]
[423050623,1779798994000,-1076.79,0.00039167,120]
[423050624,1779798994000,-278.12262725,0.00039167,120]
[423050622,1779798994000,-500.0,0.00039167,120]
[423050620,1779798994000,-1076.79,0.00039167,120]
[423050621,1779798994000,-1076.79,0.00039167,120]
[423050625,1779798994000,-1076.79,0.00039167,120]
[423050611,1779798994000,-190.1484556,0.00039167,120]
[423050616,1779798994000,-649.73226386,0.00039167,120]
[423050617,1779798994000,-1076.79,0.00039167,120]
[423050614,1779798994000,-1076.79,0.00039167,120]
[423050615,1779798994000,-500.0,0.00039167,120]
[423050612,1779798994000,-1076.79,0.00039167,120]
[423050613,1779798994000,-302.98876008,0.00039167,120]
[423050619,1779798994000,-1076.79,0.00039167,120]
[423050626,1779798994000,-1076.79,0.00039167,120]
[423050618,1779798994000,-1076.79,0.00039167,120]
[423050627,1779798994000,-1076.79,0.00039167,120]
[423050628,1779798994000,-1076.79,0.00039167,120]
[423050643,1779798994000,-606.16251221,0.00039167,120]
[423050642,1779798994000,-500.0,0.00039167,120]
[423050641,1779798994000,-210.61278038,0.00039167,120]
[423050640,1779798994000,-1076.82784132,0.00039167,120]
[423050639,1779798994000,-500.0,0.00039167,120]
[423050638,1779798994000,-1076.79,0.00039167,120]
[423050634,1779798994000,-1076.79,0.00039167,120]
[423050636,1779798994000,-1076.79,0.00039167,120]
[423050635,1779798994000,-1076.79,0.00039167,120]
[423050633,1779798994000,-500.0,0.00039167,120]
[423050632,1779798994000,-1076.79,0.00039167,120]
[423050631,1779798994000,-1076.79,0.00039167,120]
[423050629,1779798994000,-185.67992513,0.00039167,120]
[423050630,1779798994000,-151.76785026,0.00039167,120]
[423050637,1779798994000,-590.83910459,0.00039167,120]
[423050658,1779798995000,-264.70315521,0.00039167,120]
[423050657,1779798995000,-500.0,0.00039167,120]
[423050656,1779798995000,-222.45959563,0.00039167,120]
[423050655,1779798995000,-438.57155181,0.00039167,120]
[423050654,1779798995000,-193.28269042,0.00039167,120]
[423050653,1779798995000,-349.9278278,0.00039167,120]
[423050652,1779798995000,-240.40434324,0.00039167,120]
[423050647,1779798995000,-201.61197931,0.00039167,120]
[423050649,1779798995000,-290.29735361,0.00039167,120]
[423050650,1779798995000,-500.0,0.00039167,120]
[423050660,1779798995000,-500.0,0.00039167,120]
[423050648,1779798995000,-150.80650269,0.00039167,120]
[423050646,1779798995000,-211.63559566,0.00039167,120]
[423050644,1779798995000,-565.56979725,0.00039167,120]
[423050651,1779798995000,-247.48791809,0.00039167,120]
[423050659,1779798995000,-158.59143958,0.00039167,120]
[423050645,1779798995000,-500.0,0.00039167,120]
[423050662,1779798995000,-500.0,0.00039167,120]
[423050661,1779798995000,-500.0,0.00039167,120]
[423050678,1779798995000,-699.02,0.00039167,120]
[423050675,1779798995000,-227.76140271,0.00039167,90]
[423050676,1779798995000,-699.02,0.00039167,120]
[423050674,1779798995000,-500.0,0.00039167,120]
[423050672,1779798995000,-500.0,0.00039167,90]
[423050673,1779798995000,-699.02,0.00039167,120]
[423050671,1779798995000,-500.0,0.00039167,120]
[423050677,1779798995000,-500.0,0.00039167,120]
[423050669,1779798995000,-500.0,0.00039167,120]
[423050668,1779798995000,-500.0,0.00039167,120]
[423050667,1779798995000,-500.0,0.00039167,120]
[423050665,1779798995000,-500.0,0.00039167,120]
[423050666,1779798995000,-500.0,0.00039167,120]
[423050663,1779798995000,-500.0,0.00039167,120]
[423050664,1779798995000,-256.88218503,0.00039167,120]
[423050670,1779798995000,-151.50995137,0.00039167,120]
[423050691,1779798996000,-574.66,0.00039167,120]
[423050689,1779798996000,-699.02,0.00039167,120]
[423050688,1779798996000,-574.66,0.00039167,120]
[423050687,1779798996000,-500.0,0.00039167,120]
[423050685,1779798996000,-500.0,0.00039167,120]
[423050683,1779798996000,-500.0,0.00039167,120]
[423050684,1779798996000,-699.02,0.00039167,120]
[423050682,1779798996000,-699.02,0.00039167,120]
[423050681,1779798996000,-500.0,0.00039167,120]
[423050679,1779798996000,-500.0,0.00039167,120]
[423050680,1779798996000,-699.02,0.00039167,120]
[423050690,1779798996000,-258.57869798,0.00039167,120]
[423050686,1779798996000,-699.02,0.00039167,120]
[423050692,1779798996000,-699.02,0.00039167,120]
[423050697,1779798996000,-574.66,0.00039167,120]
[423050694,1779798996000,-699.02,0.00039167,120]
[423050708,1779798996000,-450.0,0.00039167,120]
[423050706,1779798996000,-574.66,0.00039167,120]
[423050693,1779798996000,-574.66,0.00039167,120]
[423050705,1779798996000,-699.02,0.00039167,120]
[423050704,1779798996000,-500.0,0.00039167,120]
[423050702,1779798996000,-699.02,0.00039167,120]
[423050707,1779798996000,-699.02,0.00039167,120]
[423050701,1779798996000,-699.02,0.00039167,120]
[423050700,1779798996000,-303.10246616,0.00039167,120]
[423050699,1779798996000,-699.02,0.00039167,120]
[423050698,1779798996000,-699.02,0.00039167,120]
[423050696,1779798996000,-699.02,0.00039167,120]
[423050695,1779798996000,-574.66,0.00039167,120]
[423050703,1779798996000,-574.66,0.00039167,120]
[423050709,1779798997000,-699.02,0.00039167,120]
[423050711,1779798997000,-574.66,0.00039167,120]
[423050713,1779798997000,-574.66,0.00039167,120]
[423050712,1779798997000,-699.02,0.00039167,120]
[423050714,1779798997000,-699.02,0.00039167,120]
[423050716,1779798997000,-635.83095782,0.00039167,120]
[423050717,1779798997000,-699.02,0.00039167,120]
[423050710,1779798997000,-699.02,0.00039167,120]
[423050718,1779798997000,-574.66,0.00039167,120]
[423050715,1779798997000,-574.66,0.00039167,120]
[423050719,1779798997000,-699.02,0.00039167,120]
[423050720,1779798997000,-574.66,0.00039167,120]
[423050728,1779798997000,-574.66,0.00039167,120]
[423050727,1779798997000,-574.66,0.00039167,120]
[423050726,1779798997000,-574.66,0.00039167,120]
[423050721,1779798997000,-699.25084135,0.00039167,120]
[423050725,1779798997000,-611.14514911,0.00039167,120]
[423050722,1779798997000,-574.66,0.00039167,120]
[423050724,1779798997000,-574.66,0.00039167,120]
[423050723,1779798997000,-574.66,0.00039167,120]
[423050729,1779798998000,574.66,0.00039167,120]
[423050730,1779798998000,500.0,0.00039167,120]
[423050731,1779798998000,1976.73824087,0.00039167,30]
[423050732,1779798998000,574.66,0.00039167,120]
[423050734,1779798998000,574.66,0.00039167,120]
[423050733,1779798998000,611.11930326,0.00039167,120]
[423050736,1779798998000,574.66,0.00039167,120]
[423050737,1779798998000,300.16899237,0.00039167,120]
[423050738,1779798998000,574.66,0.00039167,120]
[423050739,1779798998000,574.7533533,0.00039167,120]
[423050740,1779798998000,206.88829261,0.00039167,120]
[423050741,1779798998000,206.88829261,0.00039167,120]
[423050735,1779798998000,154.91181076,0.00039167,120]
[423050748,1779798999000,206.88829261,0.00039167,120]
[423050742,1779798999000,206.88829261,0.00039167,120]
[423050743,1779798999000,206.88829261,0.00039167,120]
[423050744,1779798999000,169.87725765,0.00039167,120]
[423050745,1779798999000,206.88829261,0.00039167,120]
[423050746,1779798999000,206.88829261,0.00039167,120]
[423050747,1779798999000,206.88829261,0.00039167,120]
[423050749,1779798999000,206.88829261,0.00039167,120]
[423050752,1779798999000,206.88829261,0.00039167,120]
[423050750,1779798999000,428.21195503,0.00039167,120]
[423050753,1779798999000,263.598334,0.00039167,120]
[423050755,1779798999000,647.56217781,0.00039167,120]
[423050754,1779798999000,206.88829261,0.00039167,120]
[423050756,1779798999000,206.88829261,0.00039167,120]
[423050757,1779798999000,206.88829261,0.00039167,120]
[423050751,1779798999000,206.88829261,0.00039167,120]
[423050758,1779798999000,1318.59,0.00039167,120]
[423050768,1779799000000,1318.59,0.00039167,120]
[423050766,1779799000000,1318.59,0.00039167,120]
[423050767,1779799000000,1318.59,0.00039167,120]
[423050765,1779799000000,1318.59,0.00039167,120]
[423050759,1779799000000,1318.59,0.00039167,120]
[423050762,1779799000000,1318.59,0.00039167,120]
[423050763,1779799000000,1318.59,0.00039167,120]
[423050761,1779799000000,1318.59,0.00039167,120]
[423050760,1779799000000,1318.59,0.00039167,120]
[423050770,1779799000000,1318.59,0.00039167,120]
[423050764,1779799000000,268.99431966,0.00039167,120]
[423050769,1779799000000,1318.59,0.00039167,120]
[423050778,1779799000000,500.0,0.00039167,120]
[423050772,1779799000000,1318.59,0.00039167,120]
[423050771,1779799000000,153.55363658,0.00039167,120]
[423050783,1779799000000,1318.59,0.00039167,120]
[423050784,1779799000000,500.0,0.00039167,120]
[423050782,1779799000000,500.0,0.00039167,120]
[423050781,1779799000000,1318.59,0.00039167,120]
[423050780,1779799000000,500.0,0.00039167,120]
[423050776,1779799000000,416.97838224,0.00039167,120]
[423050777,1779799000000,1318.59,0.00039167,120]
[423050775,1779799000000,175.46026613,0.00039167,120]
[423050774,1779799000000,1318.59,0.00039167,120]
[423050773,1779799000000,1318.59,0.00039167,120]
[423050779,1779799000000,1318.59,0.00039167,120]
[423050785,1779799001000,1318.59,0.00039167,120]
[423050786,1779799001000,500.0,0.00039167,120]
[423050787,1779799001000,500.0,0.00039167,120]
[423050788,1779799001000,1318.59,0.00039167,120]
[423050789,1779799001000,500.0,0.00039167,120]
[423050790,1779799001000,1318.59,0.00039167,120]
[423050792,1779799001000,1318.59,0.00039167,120]
[423050791,1779799001000,500.0,0.00039167,120]
[423050794,1779799001000,1318.82437192,0.00039167,120]
[423050796,1779799001000,500.0,0.00039167,120]
[423050797,1779799001000,222.10859988,0.00039167,120]
[423050798,1779799001000,500.0,0.00039167,120]
[423050799,1779799001000,240.82758117,0.00039167,120]
[423050793,1779799001000,500.0,0.00039167,120]
[423050795,1779799001000,500.0,0.00039167,120]
[423050821,1779799252000,819.64,0.00027844,120]
[423050828,1779799400000,513.0,0.00028082,120]
[423050829,1779799413000,167.0,0.00028082,120]
[423050831,1779799426000,162.87,0.00028082,120]
[423050833,1779799462000,151.0,0.00028082,120]
[423050841,1779799663000,151.96,0.00028082,120]
[423050842,1779799697000,694.936578,0.00027635,120]
[423050843,1779799700000,513.0,0.00028082,120]
[423050847,1779799819000,500.0,0.00027872,120]
[423050848,1779799829000,315.99,0.00026233,120]
[423050881,1779799832000,-1546.69481953,0.000199,2]
[423050882,1779799832000,-773.34740977,0.000199,2]
[423050880,1779799832000,-198.0,0.00019899,2]
[423050883,1779799832000,-773.34740975,0.000199,2]
[423050886,1779799832000,-290.89192438,0.000199,2]
[423050885,1779799832000,-290.89192438,0.000199,2]
[423050888,1779799832000,-773.34740975,0.0001997,2]
[423050884,1779799832000,-290.8919244,0.000199,2]
[423050889,1779799832000,-452.0,0.0002,2]
[423050887,1779799832000,-290.89192438,0.000199,2]
[423050891,1779799832000,-387.0,0.0002,2]
[423050879,1779799832000,-161.23,0.00019395,2]
[423050892,1779799832000,-153.0,0.0002,2]
[423050893,1779799832000,-324.0,0.0002,2]
[423050895,1779799832000,-440.0,0.0002,2]
[423050894,1779799832000,-197.0,0.0002,2]
[423050896,1779799832000,-442.0,0.0002,2]
[423050897,1779799832000,-534.0,0.0002,2]
[423050899,1779799832000,-641.0,0.0002,2]
[423050898,1779799832000,-453.0,0.0002,2]
[423050890,1779799832000,-158.0,0.0002,2]
[423050873,1779799832000,-150.0,0.00016438,2]
[423050874,1779799832000,-151.0,0.00016438,2]
[423050900,1779799832000,-698.0,0.0002,2]
[423050854,1779799832000,-161.23,0.00011083,2]
[423050855,1779799832000,-125.83431718,0.0001243,2]
[423050858,1779799832000,-113.8994973,0.00013854,2]
[423050856,1779799832000,-39.56568282,0.0001243,2]
[423050857,1779799832000,-161.23,0.00012469,2]
[423050860,1779799832000,-250.0,0.00014,2]
[423050859,1779799832000,-47.3305027,0.00013854,2]
[423050861,1779799832000,-300.0,0.00014969,2]
[423050866,1779799832000,-420.0,0.00016383,2]
[423050865,1779799832000,-161.23,0.00015239,2]
[423050862,1779799832000,-2500.0,0.0001497,2]
[423050864,1779799832000,-2470.65802033,0.0001497,2]
[423050870,1779799832000,-152.0,0.00016438,2]
[423050867,1779799832000,-1851.6,0.00016438,2]
[423050868,1779799832000,-151.0,0.00016438,2]
[423050869,1779799832000,-220.0,0.00016438,2]
[423050871,1779799832000,-150.0,0.00016438,2]
[423050872,1779799832000,-151.0,0.00016438,2]
[423050878,1779799832000,-1009.67,0.000187,2]
[423050875,1779799832000,-161.23,0.00016625,2]
[423050876,1779799832000,-161.23,0.0001801,2]
[423050877,1779799832000,-1851.6,0.0001841,2]
[423050903,1779799832000,-486.3904219,0.00020379,2]
[423050863,1779799832000,-2500.0,0.0001497,2]
[423050904,1779799832000,-287.94635964,0.00020379,2]
[423050932,1779799832000,-773.34740975,0.000208,2]
[423050928,1779799832000,-151.0,0.00020715,2]
[423050931,1779799832000,-161.23,0.00020781,2]
[423050929,1779799832000,-151.0,0.00020715,2]
[423050933,1779799832000,-1546.69481951,0.000209,2]
[423050935,1779799832000,-452.0,0.00021,2]
[423050934,1779799832000,-315.99,0.00020986,2]
[423050938,1779799832000,-153.0,0.00021,2]
[423050949,1779799832000,-1004.14,0.00021273,2]
[423050936,1779799832000,-158.0,0.00021,2]
[423050943,1779799832000,-453.0,0.00021,2]
[423050941,1779799832000,-442.0,0.00021,2]
[423050942,1779799832000,-534.0,0.00021,2]
[423050939,1779799832000,-324.0,0.00021,2]
[423050940,1779799832000,-440.0,0.00021,2]
[423050944,1779799832000,-641.0,0.00021,2]
[423050946,1779799832000,-158.0,0.00021,2]
[423050948,1779799832000,-334.45,0.00021273,2]
[423050947,1779799832000,-1071.23,0.00021273,2]
[423050945,1779799832000,-698.0,0.00021,2]
[423050902,1779799832000,-1163.56769754,0.0002,2]
[423050930,1779799832000,-151.0,0.00020715,2]
[423050926,1779799832000,-151.0,0.00020715,2]
[423050937,1779799832000,-387.0,0.00021,2]
[423050927,1779799832000,-151.0,0.00020715,2]
[423050906,1779799832000,-1851.6,0.00020381,2]
[423050924,1779799832000,-151.0,0.00020715,2]
[423050905,1779799832000,-1430.424635,0.00020379,2]
[423050910,1779799832000,-150.0,0.0002058,2]
[423050907,1779799832000,-1580.77,0.00020548,2]
[423050909,1779799832000,-150.0,0.0002058,2]
[423050908,1779799832000,-150.0,0.0002058,2]
[423050911,1779799832000,-151.0,0.00020715,2]
[423050913,1779799832000,-151.0,0.00020715,2]
[423050914,1779799832000,-151.0,0.00020715,2]
[423050915,1779799832000,-151.0,0.00020715,2]
[423050901,1779799832000,-158.0,0.0002,2]
[423050918,1779799832000,-151.0,0.00020715,2]
[423050917,1779799832000,-151.0,0.00020715,2]
[423050925,1779799832000,-151.0,0.00020715,2]
[423050921,1779799832000,-151.0,0.00020715,2]
[423050922,1779799832000,-151.0,0.00020715,2]
[423050923,1779799832000,-151.0,0.00020715,2]
[423050919,1779799832000,-151.0,0.00020715,2]
[423050912,1779799832000,-151.0,0.00020715,2]
[423050916,1779799832000,-151.0,0.00020715,2]
[423050920,1779799832000,-151.0,0.00020715,2]
[423050959,1779799833000,-324.0,0.00022,2]
[423050963,1779799833000,-453.0,0.00022,2]
[423050966,1779799833000,-158.0,0.00022,2]
[423050967,1779799833000,-161.23,0.00022166,2]
[423050965,1779799833000,-698.0,0.00022,2]
[423050964,1779799833000,-641.0,0.00022,2]
[423050962,1779799833000,-534.0,0.00022,2]
[423050960,1779799833000,-440.0,0.00022,2]
[423050957,1779799833000,-387.0,0.00022,2]
[423050961,1779799833000,-442.0,0.00022,2]
[423050956,1779799833000,-158.0,0.00022,2]
[423050951,1779799833000,-4909.02,0.00021273,2]
[423050955,1779799833000,-452.0,0.00022,2]
[423050953,1779799833000,-500.0,0.000219,2]
[423050954,1779799833000,-157.99678112,0.00022,7]
[423050952,1779799833000,-553.62,0.00021332,2]
[423050950,1779799833000,-225.02,0.00021273,2]
[423050968,1779799833000,-292.95,0.00022189,2]
[423050958,1779799833000,-158.0,0.00022,2]
[423050969,1779799833000,-308.24,0.000222,2]
[423050977,1779799833000,-159.46500359,0.00023,2]
[423050971,1779799833000,-802.5,0.00022466,2]
[423050970,1779799833000,-1851.6,0.00022353,2]
[423050990,1779799833000,-162.22,0.00023847,2]
[423050991,1779799833000,-11214.75787369,0.000239,2]
[423050987,1779799833000,-166.67,0.00023524,30]
[423050988,1779799833000,-315.99,0.0002361,2]
[423050985,1779799833000,-698.0,0.00023,2]
[423050986,1779799833000,-158.0,0.00023,2]
[423050984,1779799833000,-641.0,0.00023,2]
[423050983,1779799833000,-453.0,0.00023,2]
[423050989,1779799833000,-751.02,0.00023833,2]
[423050981,1779799833000,-442.0,0.00023,2]
[423050980,1779799833000,-440.0,0.00023,2]
[423050979,1779799833000,-324.0,0.00023,2]
[423050978,1779799833000,-387.0,0.00023,2]
[423050976,1779799833000,-452.0,0.00023,2]
[423050975,1779799833000,-1014.26008299,0.00023,2]
[423050974,1779799833000,-21067.6174,0.000229,2]
[423050973,1779799833000,-500.0,0.00022493,2]
[423050982,1779799833000,-534.0,0.00023,2]
[423050972,1779799833000,-1071.7,0.00022466,2]
[423051012,1779799834000,-6853.6276155,0.00024101,2]
[423051011,1779799834000,-4173.6058,0.00024001,2]
[423051015,1779799834000,-5000.0,0.00024101,2]
[423051018,1779799834000,-1851.6,0.00024324,2]
[423051017,1779799834000,-10780.47968465,0.0002429,7]
[423051019,1779799834000,-500.0,0.00024564,2]
[423051021,1779799834000,-182.46,0.00024567,2]
[423051014,1779799834000,-5000.0,0.00024101,2]
[423051020,1779799834000,-500.0,0.00024564,2]
[423051022,1779799834000,-182.46,0.00024567,2]
[423051025,1779799834000,-182.46,0.00024569,2]
[423051023,1779799834000,-182.46,0.00024569,2]
[423051010,1779799834000,-158.0,0.00024,2]
[423051016,1779799834000,-5000.0,0.00024101,2]
[423051007,1779799834000,-453.0,0.00024,2]
[423050998,1779799834000,-684.53306142,0.00023902,2]
[423051008,1779799834000,-641.0,0.00024,2]
[423051024,1779799834000,-182.46,0.00024569,2]
[423050992,1779799834000,-14730.07844988,0.000239,2]
[423050993,1779799834000,-28671.72107643,0.000239,2]
[423050995,1779799834000,-6808.7217,0.000239,2]
[423050997,1779799834000,-125.97693858,0.00023902,2]
[423050996,1779799834000,-314.61251173,0.000239,2]
[423051009,1779799834000,-698.0,0.00024,2]
[423050999,1779799834000,-2285.38,0.00023909,2]
[423051002,1779799834000,-324.0,0.00024,2]
[423051004,1779799834000,-440.0,0.00024,2]
[423051001,1779799834000,-387.0,0.00024,2]
[423051006,1779799834000,-534.0,0.00024,2]
[423051003,1779799834000,-6322.5,0.00024,2]
[423051005,1779799834000,-442.0,0.00024,2]
[423051000,1779799834000,-452.0,0.00024,2]
[423051026,1779799834000,-182.49,0.00024571,2]
[423051013,1779799834000,-5000.0,0.00024101,2]
[423051027,1779799834000,-182.46,0.00024571,2]
[423051051,1779799834000,-257.21,0.00025327,2]
[423051050,1779799834000,-503.0,0.00025082,2]
[423051049,1779799834000,-165.0,0.00025,2]
[423051047,1779799834000,-659.0,0.00025,2]
[423051048,1779799834000,-707.40908794,0.00025,2]
[423051054,1779799834000,-1000.0,0.000256,2]
[423051046,1779799834000,-471.0,0.00025,2]
[423051052,1779799834000,-200.0,0.00025473,2]
[423051055,1779799834000,-500.0,0.00025737,2]
[423051056,1779799834000,-553.62,0.00025771,2]
[423051058,1779799834000,-334.45,0.00025786,2]
[423051061,1779799834000,-3102.64862063,0.00025786,2]
[423051060,1779799834000,-225.02,0.00025786,2]
[423051029,1779799834000,-1000.0,0.00024658,2]
[423051057,1779799834000,-1071.23,0.00025786,2]
[423051045,1779799834000,-545.0,0.00025,2]
[423051053,1779799834000,-314.6125117,0.00025585,2]
[423051043,1779799834000,-454.0,0.00025,2]
[423051030,1779799834000,-257.21,0.0002471,2]
[423051044,1779799834000,-448.0,0.00025,2]
[423051031,1779799834000,-819.64,0.0002475,2]
[423051033,1779799834000,-5000.0,0.00024809,2]
[423051032,1779799834000,-166.67,0.00024762,30]
[423051034,1779799834000,-3079.74,0.00024835,2]
[423051059,1779799834000,-1004.14,0.00025786,2]
[423051037,1779799834000,-500.0,0.00024932,2]
[423051028,1779799834000,-182.46,0.00024571,2]
[423051036,1779799834000,-500.0,0.00024932,2]
[423051042,1779799834000,-340.0,0.00025,2]
[423051039,1779799834000,-1000.0,0.00025,2]
[423051040,1779799834000,-469.80029041,0.00025,2]
[423051038,1779799834000,-150.0,0.00024952,2]
[423051035,1779799834000,-165.4,0.0002486,2]
[423051041,1779799834000,-394.0,0.00025,2]
[423051160,1779799840000,-503.0,0.00025805,2]
[423051159,1779799840000,-840.28044878,0.00025786,2]
[423051161,1779799840000,-158.81531321,0.00025945,2]
[423051158,1779799840000,-966.09093059,0.00025786,2]
[423051181,1779799843000,-503.0,0.0002725,4]
[423051177,1779799843000,-503.0,0.00026527,3]
[423051175,1779799843000,-1851.6,0.00026296,2]
[423051178,1779799843000,-257.21,0.00026563,2]
[423051171,1779799843000,-98.39468679,0.00025945,2]
[423051176,1779799843000,-167.05,0.00026333,2]
[423051173,1779799843000,-6322.5,0.00026,2]
[423051174,1779799843000,-150.0,0.000262,7]
[423051180,1779799843000,-257.21,0.00027181,2]
[423051179,1779799843000,-350.0,0.00027,2]
[423051183,1779799843000,-178.81107673,0.000273,30]
[423051172,1779799843000,-166.67,0.00026,30]
[423051184,1779799843000,-500.0,0.00027369,2]
[423051194,1779799843000,-3229.57146659,0.00027873,2]
[423051193,1779799843000,-29094.94682305,0.00027873,2]
[423051190,1779799843000,-251.79,0.000275,14]
[423051191,1779799843000,-6322.5,0.000275,2]
[423051189,1779799843000,-2752.25827522,0.000274,2]
[423051182,1779799843000,-314.6125117,0.0002727,2]
[423051188,1779799843000,-198.54172478,0.000274,2]
[423051187,1779799843000,-3181.4,0.00027397,10]
[423051186,1779799843000,-300.0,0.00027397,2]
[423051185,1779799843000,-1500.0,0.00027397,2]
[423051192,1779799843000,-150.0,0.00027521,2]
[423051200,1779799846000,-436.38428964,0.00028,60]
[423051199,1779799846000,-503.0,0.00027973,5]
[423051198,1779799846000,-890.56971036,0.00027873,2]
[423051197,1779799846000,-150.0,0.0002058,2]
[423051215,1779799864000,500.0,0.00026291,120]
[423051216,1779799869000,2500.0,0.0002808,120]
[423051217,1779799882000,2500.0,0.0002808,120]
[423051218,1779799896000,1000.0,0.0002808,120]
[423051219,1779799906000,2500.0,0.0002808,120]
[423051220,1779799919000,2500.0,0.0002808,120]
[423051222,1779799947000,1000.0,0.0002808,120]
[423051223,1779799955000,2500.0,0.0002808,120]
[423051225,1779799966000,2500.0,0.0002808,120]
[423051226,1779799977000,2500.0,0.0002808,120]
[423051231,1779800003000,2500.0,0.0002808,120]
[423051234,1779800016000,2500.0,0.0002808,120]
[423051235,1779800017000,500.0,0.00027872,120]
[423051236,1779800025000,2500.0,0.0002808,120]
[423051239,1779800033000,2500.0,0.0002808,120]
[423051240,1779800043000,2500.0,0.0002808,120]
[423051241,1779800062000,2500.0,0.0002808,120]
[423051243,1779800107000,188.0,0.0002605,120]
[423051247,1779800108000,188.0,0.00027353,120]
[423051248,1779800213000,211.897842,0.00027323,120]
[423051251,1779800229000,500.0,0.00027872,120]
[423051259,1779800407000,189.0,0.00026065,120]
[423051260,1779800408000,189.0,0.00027368,120]
[423051264,1779800462000,500.0,0.00027872,120]
[423051268,1779800517000,155.18,0.00010942,2]
[423051267,1779800517000,155.18,0.00010334,2]
[423051272,1779800613000,220.270076,0.00025121,120]
[423051280,1779800943000,1000.0,0.00028079,120]
[423051304,1779801032000,-155.18,0.00017021,2]
[423051305,1779801032000,-1200.0,0.00017126,2]
[423051308,1779801032000,-155.18,0.00017629,2]
[423051306,1779801032000,-303.60326786,0.00017127,2]
[423051309,1779801032000,-155.18,0.00018237,2]
[423051310,1779801032000,-1236.9,0.0001841,2]
[423051311,1779801032000,-226.54843932,0.00018778,7]
[423051302,1779801032000,-3239.89045364,0.000168,2]
[423051312,1779801032000,-1200.0,0.00018796,2]
[423051313,1779801032000,-155.18,0.00018844,2]
[423051314,1779801032000,-426.3,0.00019006,2]
[423051307,1779801032000,-156.40168343,0.00017127,2]
[423051299,1779801032000,-1236.9,0.00016438,2]
[423051296,1779801032000,-155.18,0.00015805,2]
[423051301,1779801032000,-209.0,0.00016721,2]
[423051298,1779801032000,-155.18,0.00016413,2]
[423051295,1779801032000,-155.18,0.00015197,2]
[423051292,1779801032000,-155.18,0.00013373,2]
[423051297,1779801032000,-7191.0,0.00016393,2]
[423051293,1779801032000,-155.18,0.00013981,2]
[423051294,1779801032000,-155.18,0.00014589,2]